Cogmind - Beta 13 @@@ ROGUE MODE // 2024.06.12 @ 23:22:12 Player: Spoodle Result: Destroyed by Autobeam Turret with Autobeam Performance ------------- Evolutions (0) 0 Regions Visited (2) 400 Robots Destroyed (32) 160 Value Destroyed (776) 776 Prototype IDs (2) 40 Alien Tech Used (0) 0 Bonus (0) 0 TOTAL SCORE: 1376 Bonus ------- None Cogmind --------- Core Integrity 0/250 Matter 295/300 Energy 100/100 System Corruption 0% Temperature Cool (18) Movement Treading (160) Location -10/Subcaves Parts ------- > --- POWER (1) -------- (None) > --- PROPULSION (2) --- Light Treads Light Treads > --- UTILITY (2) ------ Large Storage Unit Sensor Array > --- WEAPON (2) ------- Battle Rifle Subdweller Machine Gun > --- INVENTORY (15) --- Light Treads Subdweller Optics Subdweller Laser Subdweller Machine Gun Battle Cannon Grenade Launcher Dirty Datajack (20) Multitool Peak State ------------ > --- POWER ------------ Ion Engine > --- PROPULSION ------- Light Treads Makeshift Leg > --- UTILITY ---------- Large Storage Unit Sensor Array > --- WEAPON ----------- Subdweller Laser Subdweller Machine Gun > --- INVENTORY -------- Ion Engine Subdweller Power Source Light Treads Light Treads Sensor Array Signal Interpreter Targeting Computer Scrap Shield Assault Rifle Grenade Launcher Hammer [Rating: 13] Favorites ----------- Power Ion Engine Engine Ion Engine Propulsion Light Treads Treads Light Treads Leg Makeshift Leg Utility Sensor Array Device Sensor Array Storage Large Storage Unit Processor Signal Interpreter Protection Scrap Shield Weapon Assault Rifle Energy Gun Subdweller Laser Energy Cannon Subdweller Beam Cannon Ballistic Gun Assault Rifle Launcher Grenade Launcher Special Weapon Multitool Impact Weapon Hammer Slashing Weapon Mining Claw Build | -11 -10 -10 ------- Run | Yrd Mat Sub Slots Evolved . | . . . Power . | . . . Propulsion . | . . . Utility . | . . . Weapon . | . . . Parts Attached 57 | 7 17 33 Power 6 | 1 4 1 Engine 6 | 1 4 1 Core . | . . . Reactor . | . . . Propulsion 7 | 2 2 3 Treads 6 | 2 2 2 Leg 1 | . . 1 Wheel . | . . . Hover . | . . . Flight . | . . . Utility 20 | 2 3 15 Device 8 | 1 2 5 Storage 7 | 1 1 5 Processor 1 | . . 1 Hackware . | . . . Protection 4 | . . 4 Artifact . | . . . Weapon 24 | 2 8 14 Energy Gun 7 | 1 3 3 Energy Cannon 1 | . . 1 Ballistic Gun 11 | 1 3 7 Ballistic Cannon . | . . . Launcher 2 | . . 2 Special Weapon 1 | . . 1 Impact Weapon 1 | . 1 . Slashing Weapon 1 | . 1 . Piercing Weapon . | . . . Special Melee Weapon . | . . . Unidentified Prototypes . | . . . Parts Lost 7 | . 2 5 Power 4 | . 2 2 Propulsion 1 | . . 1 Utility 1 | . . 1 Weapon 1 | . . 1 Highest Loss Streak 2 | . 1 2 To Critical Strikes 1 | . . 1 Average Slot Usage (%) 99 | . 99 98 Engine 13 | . 13 13 Treads 27 | . 28 27 Device 13 | . 14 13 Storage 13 | . 14 13 Energy Gun 9 | . 10 9 Ballistic Gun 16 | . 16 16 Naked Turns . | . . . Heaviest Build 38 | 12 20 38 Greatest Support 40 | 40 40 40 Greatest Overweight (x) 1 | . . 1 Average Overweight (x) . | . . . Largest Inventory Capacity 15 | 8 10 15 Average Capacity 12 | 7 8 14 Most Carried 14 | 5 10 14 Average Carried 7 | 2 8 7 Final Capacity 15 | 8 10 15 Final Carried 10 | 5 10 8 Class Distribution -------------------- 71% | Mutant 27% | Scavenger-Mutant Dominant Class ---------------- Mutant | -10/Materials Mutant | -10/Subcaves Resources | -11 -10 -10 ----------- Run | Yrd Mat Sub Matter Collected 1292 | 277 264 751 Remotely . | . . . Salvage Created 1236 | 76 527 633 Parts 96 | 8 40 48 Haulers Intercepted 2 | . 2 . Recyclers Shooed . | . . . Parts Field Recycled . | . . . Retrieved Matter . | . . . Parts Self-Destructed 15 | . . 15 Prevented . | . . . Kills | -11 -10 -10 ------- Run | Yrd Mat Sub Combat Hostiles Destroyed 25 | . 13 12 Guns 25 | . 13 12 Classes Destroyed 8 | 2 4 2 Worker 1 | 1 . . Tunneler 2 | 2 . . Hauler 2 | . 2 . Watcher 2 | . 2 . Swarmer 8 | . 6 2 Grunt 8 | . 7 1 Artisan 1 | . . 1 Subdweller 9 | . . 9 Best Kill Streak 5 | 2 5 2 Combat Bots Only 5 | . 5 2 Max Kills in Single Turn 2 | 1 2 1 Gunslinging 1 | . 1 . Exploded . | . . . Melee . | . . . Uniques/NPCs Destroyed . | . . . Combat | -11 -10 -10 -------- Run | Yrd Mat Sub Hostile Shots Fired 178 | . 65 113 Missed 38 | . 5 33 Damage Taken 1855 | . 635 1220 Core 254 | . 61 193 Absorbed by Shields . | . . . Core Remaining (%) 100 | 100 . . Volleys Fired 167 | 7 54 106 Largest 2 | 2 2 2 Hottest 110 | 70 90 110 Shots Fired 278 | 14 102 162 Gun 251 | 14 102 135 Cannon 5 | . . 5 Launcher 3 | . . 3 Special 19 | . . 19 Kinetic 136 | 7 42 87 Thermal 139 | 7 60 72 Explosive 3 | . . 3 Electromagnetic . | . . . Robot Hit Streak 21 | 4 9 21 Robot Miss Streak 5 | 1 3 5 Penetration Max . | . . . Secondary Targets 3 | . 2 1 Max Gunslinging Chain 1 | . 1 1 Shots Hit Robots 172 | 9 63 100 Core Hits 63 | 3 27 33 Critical Kills 2 | . . 2 Critical Parts Destroyed 1 | . . 1 Critical Strikes 7 | . 3 4 Burn 3 | . 3 . Destroy 4 | . . 4 Melee Attacks 5 | . 5 . Impact 2 | . 2 . Slashing 3 | . 3 . Piercing . | . . . Sneak Attacks . | . . . Combat Hostiles . | . . . Follow-up Attacks . | . . . Damage Inflicted 2350 | 100 764 1486 Guns 2195 | 100 764 1331 Cannons 27 | . . 27 Explosions . | . . . Melee . | . . . Ramming . | . . . Kinetic 1028 | 26 274 728 Thermal 1322 | 74 490 758 Explosive . | . . . Electromagnetic . | . . . Impact . | . . . Slashing . | . . . Piercing . | . . . Highest Corruption . | . . . Average Corruption . | . . . Corruption Purged . | . . . Corruption Blocked . | . . . Overload Shots . | . . . Overflow Damage . | . . . Projectiles . | . . . Explosions . | . . . Melee . | . . . Knockbacks . | . . . Impact . | . . . Kinetic . | . . . Secondary . | . . . Self-Inflicted Damage 2 | . . 2 Shots 1 | . . 1 Rammed . | . . . Targets Rammed . | . . . Kicked . | . . . Crushed . | . . . Highest Temperature 258 | 80 258 31 Average Temperature 89 | 31 101 22 Received Heat Transfer 435 | . 234 201 Effects 3 | . 3 . Interference 3 | . 3 . Siege Activations . | . . . Robots Corrupted . | . . . Combat Hostiles . | . . . Parts Fried . | . . . Impact Corruptions . | . . . Robots Melted . | . . . Combat Hostiles . | . . . Parts Melted 2 | . 2 . Heat Transferred 2968 | 222 1534 1212 Parts Sabotaged . | . . . Parts Stolen . | . . . Parts Stripped . | . . . Power Chain Reactions . | . . . Alert | -11 -10 -10 ------- Run | Yrd Mat Sub Peak Influence 210 | 15 210 . Initial 9 | . 9 . Average 83 | 7 93 . Maximum Alert Level 1 | . 1 . Low Security (%) 90 | 100 89 . Level 1 9 | . 10 . Level 2 . | . . . Level 3 . | . . . Level 4 . | . . . Level 5 . | . . . High Security . | . . . Max Security . | . . . Squads Dispatched 3 | . 3 . Investigation 1 | . 1 . Extermination . | . . . Reinforcement 2 | . 2 . Assault . | . . . Garrison . | . . . Intercept . | . . . Searches Triggered . | . . . Construction Impeded . | . . . Haulers Reinforced . | . . . Active Scanning Responses . | . . . Cargo Convoy Interrupts . | . . . Stealth | -11 -10 -10 --------- Run | Yrd Mat Sub Distress Signals . | . . . Communications Jammed . | . . . Distress Signals . | . . . Times Spotted 49 | . 20 29 Peak Tracking Total 4 | . 4 3 Tactical Retreats 2 | . . 2 Traps | -11 -10 -10 ------- Run | Yrd Mat Sub Traps Triggered 1 | . 1 . Indirectly . | . . . Trap Hack Attempts . | . . . Triggered . | . . . Disarmed . | . . . Reprogrammed . | . . . Reused . | . . . Traps Extracted . | . . . Installed . | . . . Triggered 1 | . . 1 Machines | -11 -10 -10 ---------- Run | Yrd Mat Sub Machines Disabled . | . . . Max in Single Turn . | . . . Machines Repaired . | . . . Machines Dismantled . | . . . Machines Sabotaged . | . . . Overloaded Fab Kills . | . . . Hacking | -11 -10 -10 --------- Run | Yrd Mat Sub Machines Accessed 6 | . 5 1 Terminals 4 | . 4 . Fabricators . | . . . Repair Stations . | . . . Recycling Units 1 | . 1 . Scanalyzers . | . . . Garrison Access . | . . . Total Hacks 16 | . 13 3 Successful 8 | . 5 3 Failed 8 | . 8 . Catastrophic 1 | . 1 . Database Lockouts . | . . . Manual 5 | . 5 . Terminals 12 | . 12 . Fabricators . | . . . Repair Stations . | . . . Recycling Units 1 | . 1 . Scanalyzers . | . . . Garrison Access . | . . . Terminal Hacks 8 | . 5 3 Record 3 | . . 3 Robot Analysis 2 | . 2 . Prototype ID Bank 1 | . 1 . Locate Traps 1 | . 1 . Maintenance Status 1 | . 1 . Fabricator Hacks . | . . . Repair Station Hacks . | . . . Recycling Unit Hacks . | . . . Scanalyzer . | . . . Garrison Access Hacks . | . . . Unauthorized Hacks . | . . . Terminals . | . . . Fabricators . | . . . Repair Stations . | . . . Recycling Units . | . . . Scanalyzers . | . . . Garrison Access . | . . . Data Cores Recovered . | . . . Used . | . . . Hacking Detections 5 | . 5 . Full Trace Events 1 | . 1 . Feedback Events . | . . . Feedback Blocked . | . . . Robot Schematics Acquired . | . . . Robots Built . | . . . Authchips . | . . . Time . | . . . Total Robot Build Rating . | . . . Part Schematics Acquired . | . . . Parts Built . | . . . Authchips . | . . . Time . | . . . Total Part Build Rating . | . . . Parts Repaired . | . . . Time . | . . . Parts Recycled . | . . . Recycled Matter . | . . . Retrieved Matter . | . . . Retrieved Components . | . . . Parts Scanalyzed . | . . . Part Schematics Acquired . | . . . Parts Damaged . | . . . Bothacking | -11 -10 -10 ------------ Run | Yrd Mat Sub Used RIF Installer . | . . . Robots Hacked . | . . . Non-combat . | . . . Combat . | . . . Robot Hacks Applied . | . . . Relay Couplers Released . | . . . Fabnet Peak Effective % . | . . . Robots Rewired . | . . . Allies Hacked . | . . . Hacks Repelled . | . . . Allies | -11 -10 -10 -------- Run | Yrd Mat Sub Total Allies . | . . . Largest Group . | . . . Highest-Rated Group . | . . . Highest-Rated Ally . | . . . Total Orders . | . . . Ally Attacks . | . . . Total Damage . | . . . Kills . | . . . Allies Corrupted . | . . . Allies Melted . | . . . Intel | -11 -10 -10 ------- Run | Yrd Mat Sub Robot Analysis Total 2 | . 2 . Derelict Logs Recovered 3 | . . 3 Drone Launches . | . . . Drone Recoveries . | . . . Exploration | -11 -10 -10 ------------- Run | Yrd Mat Sub Turns Passed 4435 | 178 1317 2940 Spaces Moved 2311 | 84 665 1562 Core 4 | 4 . . Treads 2307 | 80 665 1562 Legs . | . . . Wheels . | . . . Hover . | . . . Flight . | . . . Fastest Speed 50 | 50 160 160 Average Speed 161 | 154 160 162 Slowest Speed 240 | 160 160 240 Overloaded Moves . | . . . Propulsion Burnouts . | . . . Robots Hopped . | . . . Cave-ins Triggered . | . . . Exploration Rate (%) 57 | 7 78 88 Regions Visited 2 Branch Regions 1 Pre-discovered Areas 2 | . . 2 Known Exits Taken . | . . . Unknown Exits Taken 2 | 1 1 . Scrap Searched . | . . . Spaces Dug 25 | . 3 22 Terrain Destroyed 27 | . 3 24 Melee 3 | . 3 . Projectile 2 | . . 2 AOE 22 | . . 22 Terrain Rammed . | . . . Walls Destroyed . | . . . Machines Disabled . | . . . Actions | -11 -10 -10 --------- Run | Yrd Mat Sub Total 2721 | 117 809 1795 Wait 93 | 12 37 44 Move 2309 | 83 664 1562 Hop . | . . . Pick Up 47 | 7 16 24 Fast Attach 17 | 6 4 7 Attach 12 | 1 . 11 Detach . | . . . Swap 28 | . 13 15 Drop 41 | 1 16 24 Fire 167 | 7 54 106 Melee 5 | . 5 . Ram . | . . . Kick . | . . . Crush . | . . . Escape Stasis . | . . . Rewire . | . . . Trap . | . . . Miscellaneous 2 | . . 2 Route ------- -11/Scrapyard -10/Materials (discovered 4 exits: [*Mat x2] / [*Min] / *Sub) -10/Subcaves (discovered 3 exits: *Mat x2 / [*Rec]) History --------- Turn | Location | Event 2 | -11/Scrapyard | Met Revision 17 5 | -11/Scrapyard | Discovered new exit (range 16) 179 | -11/Scrapyard | Entered Materials 313 | -10/Materials | Build established: Mutant 600 | -10/Materials | Discovered new exit (range 11) 816 | -10/Materials | Discovered new exit (range 9) 1031 | -10/Materials | Discovered new exit (range 6) 1481 | -10/Materials | Discovered new exit (range 9) 1496 | -10/Materials | Entered Subcaves 1540 | -10/Subcaves | Core integrity fell below 50% 1617 | -10/Subcaves | Learned location of Recycling (-9) 1620 | -10/Subcaves | Discovered new exit (range 10) 1672 | -10/Subcaves | Core integrity fell below 20% 2138 | -10/Subcaves | A swath of the cavern ceiling suddenly collapsed 2901 | -10/Subcaves | Visited Clippyterm 2906 | -10/Subcaves | Learned Factory emergency access door positions 3482 | -10/Subcaves | A swath of the cavern ceiling suddenly collapsed 3537 | -10/Subcaves | Learned Materials emergency access door positions 3616 | -10/Subcaves | Build established: Scavenger-Mutant 3681 | -10/Subcaves | Discovered new exit (range 8) 3693 | -10/Subcaves | Identified exit to Materials 3894 | -10/Subcaves | Learned location of Zion (-7) 4231 | -10/Subcaves | Shifting Twisted Machinery released Battle Rifle 4423 | -10/Subcaves | Discovered new exit (range 9) 4436 | -10/Subcaves | Destroyed by Autobeam Turret with Autobeam Last Messages --------------- 03894_ Acquired derelict log, extracted data. World map updated: -7/Zion. 03998_ BT-HWY(u) tweaks Twisted Machinery. 04009_ Sub. Beam Cannon shoots sparks and powers down. 04020_ BT-HWY(u) builds Twisted Machinery. 04036_ Dropped Broken Sub. Beam Cannon. 04161_ Acquired 3 matter. 04165_ Acquired 19 matter. Battle Rifle falls loose from the Twisted Machinery. 04249_ Acquired 4 matter. 04260_ Acquired Battle Rifle. 04282_ Acquired 8 matter. 04288_ Acquired 2 matter. 04409_ Ion Engine destroyed. 04410_ S-10 Pest destroyed. 04413_ Acquired 8 matter. 04423_ EXIT=FOUND 04428_ S-10 Pest destroyed. 04430_ Acquired 7 matter. 04435_ Lgt. Assault Rifle fries itself beyond repair. Map ----- +----------------------------------------------------+ | ???# #????????#####???###??## #### ## | | ??## ###??????????????# ??# # ## | | ??# # ??????????# ## | | ###" #### ????????# ## | | #"" #??# % ????????# # ## | | ### ## ?????????# # ####### ## | | ## #? #????????# ??#### ##???## #? | | #" ## #? ???????????????## ########? | | ## # ## ??????????? ????# #???# | | ??# # #????????????? ???## #???# | | ??## # #??????????????# ???# #??## | | ???# # #??????????????###?# ??###########% | | ??## ##????????????? ### #????????# | | ??# ###???????????! ## #####?### | | ??## ## ##??????????%& ## ### % ## | | ???# ## #??????????#& ## ## | | ???## " ########& #??# # | | ????#"#"#" % ## ##%%!%???## # | | ????###""## ## &]&#????### % | | ?????#""##??%## ####% !%*#??????# | | ?????#"##????#???? #?## #????### ## | | ?????# ##???????? ?# ##??## ## | | ?????#""###?????? #?# #### % | | ?????##"""#?????# ### % | | ?????##""##????# ?#%% ##% | | ?????##" ####### ??#; @ ## ## ## | | ??????#"#""###" " #??##% %##### #### ## % # | | ??????##"###""#"# ##" ??## ##?# ######### | | ???????#" #""%"#?#% ??# ### ##??????? | | ???????### ""#""???# ?# ## #??????# | | ?????????##"#"##???#" t t ?# # ##?### # | | ??????????##""##???#" " " "##### ## # | | ??????????#"#"##???#"""" """"????## # | | ??????????##"" #???#####<#####????#### # | | ???####????#" ##???????##????????????## ### ## | | ???# ##??##"" #??????????????????????###?#######? | | ???# #?##"" ######?????????????????????????????? | | ???# ###""" ##"""##????????????????????????????? | | ????# ##"""" """"#????????????????????????????? | | ????# "##"## """##????????????????????????????? | | ???## ""# ""###???????????????????????????? | | ???# "" " """#???????????????????????????? | | ???# #""# " "##???????????????????????????? | | ???## ####"" "" #????????????????????????????? | | ????## #?# "" ##"" #????????????????????????????? | | ????# #### ### #????????????????????????????? | | ????# #?# ### #????????????????????????????? | | ????# ### #????????????????????????????? | | ????# !! ##???????????????????????????? | | ????# #???????????????????????????? | +----------------------------------------------------+ Best States ------------- Heat Dissipation 25 Energy Generation 10 Energy Capacity 250 Matter Stores 300 Matter Capacity 300 Sight Range 16 Robot Scan Range 14 Terrain Scan Density 10 Armor Coverage 800 Evasion (%) 40 Recoil Reduction 2 Item Schematics ----------------- None Robot Schematics ------------------ None Fabricated ------------ Nothing Alien Tech Used ----------------- None Achievements -------------- None Challenges ------------ None Game ------ Seed VariableCoilCoupler Manual? 0 Play Time 00:34:19 Cumulative 78.6 hours Start 2024.06.12 @ 22:50:01 End 2024.06.12 @ 23:22:12 Sessions 1 Manual Loads 0 Difficulty Rogue Special Mode None Game No. 47 Rogue 47 Adventurer 0 Explorer 0 Win Type - Total 1 Types 1/0/0/0/0/0/0/0/0 Lore% 47 Gallery% 51 Achievement% 36 Wizard Run 0 Options --------- Layout 0 ASCII 0 Keyboard 0 Movement Mouse Keybinds 0 Fullscreen 2 Font 18/SmallcapsGlow Map View 76x50 Zoom Use 0% Tactical HUD 1 Map Filters NONE Filters NONE Steam 1 RUN: 28de2a1d-d0f5-453b-b338-b2a8eb354818